bitfinex-derivatives/quotes_BTCF0:USTF0_20240817
["timestamp","ask_amount","ask_price","bid_price","bid_amount"]
[1723868486722,0.00225346,59192.0,59191.0,0.61951644]
[1723868486927,0.00225346,59192.0,59191.0,0.98031644]
[1723868487144,0.00225346,59192.0,59191.0,1.06409221]
[1723868488134,0.00225346,59192.0,59191.0,0.97681597]
[1723868488530,0.00225346,59192.0,59191.0,0.88487953]
[1723868488836,0.00225346,59192.0,59191.0,0.97681545]
[1723868489231,0.00225346,59192.0,59191.0,0.89303968]
[1723868491239,0.05065947,59205.0,59191.0,1.73232368]
[1723868491429,0.3608,59207.0,59191.0,1.73232368]
[1723868491430,0.10035947,59210.0,59207.0,0.067538]
[1723868491629,0.0497,59210.0,59209.0,0.3608]
[1723868491833,0.0497,59210.0,59209.0,0.43512876]
[1723868492137,0.0497,59210.0,59209.0,0.4351144]
[1723868492437,0.0497,59210.0,59209.0,0.43511418]
[1723868492637,0.0507,59210.0,59209.0,0.43511418]
[1723868493739,0.0507,59210.0,59209.0,0.43611418]
[1723868494234,0.0497,59210.0,59209.0,0.43611418]
[1723868494441,0.0497,59210.0,59209.0,0.43711418]
[1723868494639,0.0497,59210.0,59209.0,0.50465018]
[1723868495339,0.0497,59210.0,59209.0,0.430336]
[1723868495935,0.00016856,59215.0,59209.0,1.10379334]
[1723868496140,0.00016856,59215.0,59214.0,0.52183]
[1723868496328,0.00016856,59215.0,59214.0,0.558984]
[1723868496529,0.00016856,59215.0,59214.0,0.59613706]
[1723868497833,0.00016856,59215.0,59214.0,0.59713706]
[1723868498438,0.00016856,59215.0,59214.0,0.559984]
[1723868498935,0.00016856,59215.0,59214.0,0.560984]
[1723868499642,0.00016856,59215.0,59214.0,0.57082354]
[1723868500042,0.00016856,59215.0,59214.0,0.17286954]
[1723868500339,0.00016856,59215.0,59214.0,0.57082075]
[1723868500639,0.00016856,59215.0,59214.0,0.53366954]
[1723868503047,0.00016856,59215.0,59214.0,0.3628]
[1723868504044,0.00016856,59215.0,59214.0,0.002]
[1723868504242,0.00016856,59215.0,59214.0,0.3628]
[1723868505239,0.01016856,59215.0,59214.0,0.3628]
[1723868506043,0.01016856,59215.0,59214.0,0.002]
[1723868506246,0.01016856,59215.0,59214.0,0.3628]
[1723868508661,0.01016856,59215.0,59214.0,0.002]
[1723868508838,0.07769756,59215.0,59214.0,0.002]
[1723868509638,0.98433756,59215.0,59214.0,0.002]
[1723868510344,1.34513756,59215.0,59214.0,0.002]
[1723868511134,1.28773215,59215.0,59205.0,0.01013265]
[1723868511334,1.28773215,59215.0,59204.0,0.00025346]
[1723868511335,0.0935,59206.0,59204.0,0.00025346]
[1723868511535,0.0935,59205.0,59204.0,0.00025346]
[1723868511742,0.0935,59205.0,59204.0,0.06779446]
[1723868512443,0.0935,59205.0,59204.0,0.07794221]
[1723868512744,0.09354,59205.0,59204.0,0.07794221]
[1723868513241,4e-05,59205.0,59204.0,0.07794221]
[1723868513445,4e-05,59205.0,59204.0,0.12817208]
[1723868513639,4e-05,59205.0,59204.0,0.12917208]
[1723868514153,0.00104,59205.0,59204.0,0.07894221]
[1723868514843,0.00104,59205.0,59204.0,0.14591538]
[1723868515047,0.00104,59205.0,59204.0,0.18307245]
[1723868515841,0.00104,59205.0,59204.0,0.18407245]
[1723868516042,0.00204,59205.0,59204.0,0.18407245]
[1723868516253,0.00204,59205.0,59204.0,0.11709928]
[1723868516448,0.00204,59205.0,59204.0,0.14686636]
[1723868516644,0.00204,59205.0,59204.0,0.11709953]
[1723868516954,0.00204,59205.0,59204.0,0.18402299]
[1723868517150,0.00204,59205.0,59204.0,0.18403899]
[1723868517343,0.00204,59205.0,59204.0,0.22119554]
[1723868517544,0.00204,59205.0,59204.0,0.15425655]
[1723868518252,0.00204,59205.0,59204.0,0.15425672]
[1723868521144,0.00204,59205.0,59204.0,0.07994221]
[1723868521448,0.00204,59205.0,59204.0,0.51505777]
[1723868524562,0.00204,59205.0,59204.0,0.15425777]
[1723868524749,0.00204,59205.0,59204.0,0.51505777]
[1723868524944,0.00204,59205.0,59204.0,0.31425777]
[1723868525153,0.00204,59205.0,59204.0,0.67505777]
[1723868528964,0.05065947,59212.0,59211.0,0.067533]
[1723868529157,0.00016856,59215.0,59211.0,0.51970409]
[1723868529360,0.00016856,59215.0,59212.0,0.20884088]
[1723868529551,0.00016856,59215.0,59213.0,0.14184656]
[1723868529752,0.00016856,59215.0,59214.0,0.07431556]
[1723868530254,0.00116856,59215.0,59214.0,0.07431556]
[1723868530759,0.00016856,59215.0,59214.0,0.14184556]
[1723868530956,0.00116856,59215.0,59214.0,0.14284556]
[1723868531149,0.00116856,59215.0,59214.0,0.20983988]
[1723868531948,0.00116856,59215.0,59214.0,0.22992432]
[1723868532263,0.00116856,59215.0,59214.0,0.30422996]
[1723868532452,0.00116856,59215.0,59214.0,0.26707714]
[1723868532650,0.00116856,59215.0,59214.0,0.66502996]
[1723868533249,0.00116856,59215.0,59214.0,0.59803564]
[1723868533858,0.00116856,59215.0,59214.0,0.23723528]
[1723868534055,0.00116856,59215.0,59214.0,0.59803528]
[1723868536150,0.00116856,59215.0,59214.0,0.56088241]
[1723868536354,0.00116856,59215.0,59214.0,0.59803482]
[1723868537356,0.00116856,59215.0,59214.0,0.61562813]
[1723868540263,0.00116856,59215.0,59214.0,0.52373]
[1723868540471,0.00116856,59215.0,59214.0,0.61562788]
[1723868544663,0.00116856,59215.0,59214.0,0.25482788]
[1723868544866,0.00116856,59215.0,59214.0,0.21767558]
[1723868545166,0.00116856,59215.0,59214.0,0.61562782]
[1723868545472,0.55536856,59215.0,59214.0,0.09389782]
[1723868545666,0.19456856,59215.0,59214.0,0.09389782]
[1723868546374,0.26209756,59215.0,59214.0,0.09389782]
[1723868546666,0.76873756,59215.0,59214.0,0.12657436]
[1723868546876,1.23630223,59215.0,59214.0,0.07630454]
[1723868547063,1.16873756,59215.0,59214.0,0.07630454]
[1723868548371,0.76873756,59215.0,59214.0,0.03915854]
[1723868548677,0.76873756,59215.0,59214.0,0.07631708]
[1723868549571,0.26209756,59215.0,59214.0,0.07631708]
[1723868551171,0.23612901,59215.0,59214.0,0.07631708]
[1723868551370,0.06869756,59215.0,59214.0,0.14419254]
[1723868551676,0.06869756,59215.0,59214.0,0.09392272]
[1723868552274,0.06869756,59215.0,59214.0,0.01960564]
[1723868552469,0.06869756,59215.0,59214.0,0.09391692]
[1723868552873,0.00116856,59215.0,59214.0,0.09391692]
[1723868553482,0.05174358,59215.0,59214.0,0.09391692]
[1723868553688,0.00116856,59215.0,59214.0,0.09391692]
[1723868553983,0.05174207,59215.0,59214.0,0.09391692]
[1723868554278,0.00116856,59215.0,59214.0,0.09391692]
[1723868554865,0.0517465,59215.0,59214.0,0.09391692]
[1723868555575,0.0517465,59215.0,59214.0,0.16144692]
[1723868556378,0.0517465,59215.0,59214.0,0.10668564]
[1723868556680,0.0517465,59215.0,59214.0,0.1614443]
[1723868556890,0.0517465,59215.0,59214.0,0.06953]
[1723868556891,0.00116856,59215.0,59214.0,0.06953]
[1723868557069,0.00116856,59215.0,59214.0,0.14383994]
[1723868557270,0.00116856,59215.0,59214.0,0.16144418]
[1723868557577,0.00116856,59215.0,59214.0,0.1614392]
[1723868558472,0.00116856,59215.0,59214.0,0.16143879]
[1723868560985,0.00116856,59215.0,59214.0,0.1614378]
[1723868561685,0.00116856,59215.0,59214.0,0.1614376]
[1723868563179,0.00116856,59215.0,59214.0,0.5222376]
[1723868565286,0.00116856,59215.0,59214.0,0.52223728]
[1723868565788,0.00116856,59215.0,59214.0,0.61563728]
[1723868566487,0.00116856,59215.0,59214.0,0.61563738]
[1723868566685,0.00116856,59215.0,59214.0,0.57848495]
[1723868566990,0.00116856,59215.0,59214.0,0.61563751]
[1723868567682,0.00116856,59215.0,59214.0,0.25483751]
[1723868567989,0.00116856,59215.0,59214.0,0.61563751]
[1723868569379,0.00116856,59215.0,59214.0,0.56088268]
[1723868569574,0.00116856,59215.0,59214.0,0.61563771]
[1723868569790,0.00116856,59215.0,59214.0,0.21768503]
[1723868570093,0.00116856,59215.0,59214.0,0.61563771]
[1723868570588,0.00116856,59215.0,59214.0,0.25483771]
[1723868570888,0.00116856,59215.0,59214.0,0.61563771]
[1723868571588,0.00116856,59215.0,59214.0,0.25483771]
[1723868571989,0.00116856,59215.0,59214.0,0.61563771]
[1723868573689,0.00116856,59215.0,59214.0,0.25483771]
[1723868574294,0.00116856,59215.0,59214.0,0.61563771]
[1723868576196,0.0517465,59215.0,59214.0,0.25483771]
[1723868576391,0.0517465,59215.0,59214.0,0.61563771]
[1723868576889,0.00116856,59215.0,59214.0,0.61563771]
[1723868577106,0.0517465,59215.0,59214.0,0.25483771]
[1723868577301,0.0517465,59215.0,59214.0,0.61563771]
[1723868577484,0.0517465,59215.0,59214.0,0.25483771]
[1723868577685,0.0517465,59215.0,59214.0,0.5413334]
[1723868577886,0.0517465,59215.0,59214.0,0.61563876]
[1723868579295,0.00116856,59215.0,59214.0,0.61563876]
[1723868580193,0.0517465,59215.0,59214.0,0.25483876]
[1723868580390,0.0517465,59215.0,59214.0,0.61563876]
[1723868580586,0.00116856,59215.0,59214.0,0.61563876]
[1723868580900,0.00116856,59215.0,59214.0,0.25483876]
[1723868581201,0.00116856,59215.0,59214.0,0.6156394]
[1723868581587,0.00116856,59215.0,59214.0,0.59803528]
[1723868581801,0.00116856,59215.0,59214.0,0.6156438]
[1723868582097,0.00116856,59215.0,59214.0,0.33861949]
[1723868582296,0.00116856,59215.0,59214.0,0.69941949]
[1723868583896,0.06743145,59218.0,59217.0,0.067526]
[1723868584098,0.0934,59220.0,59217.0,0.18531372]
[1723868584099,0.06743145,59220.0,59217.0,0.18531372]
[1723868584292,0.047,59224.0,59223.0,0.06752]
[1723868584293,0.05062875,59224.0,59223.0,0.06752]
[1723868584498,0.05062086,59231.0,59223.0,1.79949881]
[1723868584704,0.05062086,59233.0,59232.0,0.067509]
[1723868584997,0.05062086,59234.0,59233.0,0.067508]
[1723868585199,0.05055561,59239.0,59233.0,0.54610602]
[1723868585404,0.0459,59244.0,59238.0,0.4542]
[1723868585701,0.0459,59244.0,59243.0,0.4542]
[1723868585899,0.0459,59244.0,59243.0,0.54610602]
[1723868586201,0.3736,59248.0,59243.0,0.66381308]
[1723868586392,0.3736,59248.0,59244.0,0.0743052]
[1723868586596,0.3736,59248.0,59243.0,0.521696]
[1723868586597,0.3736,59248.0,59245.0,0.0743052]
[1723868586793,0.0475,59248.0,59246.0,0.0743052]
[1723868587094,0.05046229,59248.0,59247.0,0.0743052]
[1723868587301,0.05046269,59248.0,59246.0,0.0934]
[1723868587501,0.05046269,59247.0,59246.0,0.0934]
[1723868587698,0.05046269,59247.0,59246.0,0.13053681]
[1723868588306,0.05046269,59249.0,59243.0,0.430296]
[1723868588507,4e-05,59247.0,59244.0,0.03713679]
[1723868588804,4e-05,59247.0,59243.0,0.430296]
[1723868588805,0.0934,59245.0,59243.0,0.429296]
[1723868589007,0.0934,59245.0,59244.0,0.03713666]
[1723868589207,0.0934,59245.0,59243.0,0.429296]
[1723868589409,0.0934,59245.0,59243.0,0.428296]
[1723868589597,0.0934,59245.0,59243.0,0.429296]
[1723868590008,0.0934,59245.0,59244.0,0.10463232]
[1723868590211,0.09344,59247.0,59244.0,0.10563232]
[1723868590506,0.09344,59247.0,59244.0,0.068496]
[1723868590707,4e-05,59247.0,59244.0,0.067496]
[1723868591300,4e-05,59247.0,59244.0,0.068496]
[1723868591901,4e-05,59247.0,59244.0,0.069496]
[1723868592407,0.0934,59246.0,59244.0,0.069496]
[1723868592806,0.0934,59246.0,59245.0,0.3608]
[1723868593311,0.667253,59246.0,59245.0,0.3608]
[1723868593503,0.160893,59246.0,59245.0,0.3608]
[1723868593903,0.160893,59246.0,59245.0,0.001]
[1723868594411,0.170893,59246.0,59245.0,0.001]
[1723868595304,0.170893,59246.0,59245.0,0.002]
[1723868600020,0.218193,59246.0,59245.0,0.002]
[1723868605418,0.0473,59246.0,59245.0,0.002]
[1723868605728,0.1507,59246.0,59245.0,0.002]
[1723868612219,0.20116269,59246.0,59245.0,0.002]
[1723868612533,0.1507,59246.0,59245.0,0.002]
[1723868617030,0.1034,59246.0,59245.0,0.002]
[1723868617232,0.0934,59246.0,59245.0,0.06901936]
[1723868618735,0.1034,59246.0,59245.0,0.06901936]
[1723868619041,0.1034,59246.0,59245.0,0.002]
[1723868621146,0.0934,59246.0,59245.0,0.002]
[1723868621437,0.08448798,59247.0,59245.0,0.17365002]
[1723868621642,0.09448798,59247.0,59245.0,0.16241936]
[1723868622029,0.08448798,59247.0,59246.0,0.067493]
[1723868623436,0.08448798,59247.0,59246.0,0.10462953]
[1723868624346,0.08448798,59247.0,59246.0,0.10562953]
[1723868624734,0.08448798,59247.0,59246.0,0.10662953]
[1723868626044,0.08448798,59247.0,59246.0,0.10662962]
[1723868626647,4e-05,59247.0,59246.0,1.30922472]
[1723868626838,4e-05,59247.0,59246.0,1.20963959]
[1723868627142,4e-05,59247.0,59246.0,1.30149418]
[1723868627346,4e-05,59247.0,59246.0,0.99375107]
[1723868627546,4e-05,59247.0,59246.0,1.39375107]
[1723868627743,4e-05,59247.0,59246.0,0.48739107]
[1723868627942,4e-05,59247.0,59246.0,0.99375107]
[1723868628144,4e-05,59247.0,59246.0,0.39513418]
[1723868628547,4e-05,59247.0,59246.0,0.90149418]
[1723868629246,4e-05,59247.0,59246.0,1.00190433]
[1723868629444,4e-05,59247.0,59246.0,0.896419]
[1723868629747,4e-05,59247.0,59246.0,0.3900577]
[1723868630652,4e-05,59247.0,59246.0,0.28964755]
[1723868630942,4e-05,59247.0,59246.0,0.28964175]
[1723868631138,4e-05,59247.0,59246.0,1.01124175]
[1723868631338,4e-05,59247.0,59246.0,0.96444175]
[1723868632035,4e-05,59247.0,59246.0,0.964444]
[1723868632347,4e-05,59247.0,59246.0,1.04806747]
[1723868633142,4e-05,59247.0,59246.0,0.96656621]
[1723868633343,4e-05,59247.0,59246.0,1.04644887]
[1723868633542,4e-05,59247.0,59246.0,0.9628254]
[1723868633844,4e-05,59247.0,59246.0,0.24102693]
[1723868634050,4e-05,59247.0,59246.0,0.96262693]
[1723868634248,4e-05,59247.0,59246.0,0.87556885]
[1723868634448,4e-05,59247.0,59246.0,0.14374872]
[1723868634747,4e-05,59247.0,59246.0,0.07625572]
[1723868635445,4e-05,59247.0,59246.0,0.43705572]
[1723868636348,0.758332,59247.0,59246.0,0.002]
[1723868636550,0.81916056,59247.0,59246.0,0.002]
[1723868636742,0.7685336,59247.0,59246.0,0.002]
[1723868642255,0.7685336,59247.0,59240.0,0.00025322]
[1723868642256,0.067499,59241.0,59240.0,0.00025322]
[1723868642555,0.067499,59241.0,59228.0,0.3608]
[1723868642556,0.067509,59232.0,59228.0,0.43850968]
[1723868642751,0.0934,59231.0,59229.0,0.03714444]
[1723868642950,0.0934,59231.0,59230.0,0.03714444]
[1723868643152,0.0934,59231.0,59230.0,0.03714528]
[1723868643654,0.16091,59231.0,59230.0,0.03714528]
[1723868644154,0.1934,59231.0,59225.0,0.00025322]
[1723868644359,0.521716,59226.0,59225.0,0.00025322]
[1723868644548,0.621716,59226.0,59225.0,0.00025322]
[1723868645757,0.0934,59220.0,59219.0,0.00014492]
[1723868645959,0.4542,59220.0,59219.0,0.00014492]
[1723868646156,0.4994,59220.0,59219.0,0.00014492]
[1723868646345,0.4994,59220.0,59219.0,0.1307]
[1723868646346,0.3608,59220.0,59219.0,0.1307]
[1723868646848,0.3608,59220.0,59219.0,0.0373]
[1723868647047,0.36084,59220.0,59219.0,0.0373]
[1723868647248,0.36284,59220.0,59219.0,0.0383]
[1723868647562,0.36284,59220.0,59219.0,0.0393]
[1723868647952,0.00204,59220.0,59219.0,0.0393]
[1723868648754,0.00204,59220.0,59219.0,0.00214492]
[1723868654257,0.03204,59220.0,59219.0,0.00214492]
[1723868655173,0.03204,59220.0,59219.0,0.06966892]
[1723868659675,0.03204,59220.0,59219.0,0.07972068]
[1723868663678,0.06871745,59236.0,59219.0,1.41872068]
[1723868663868,0.067506,59235.0,59229.0,0.3608]
[1723868664172,0.00025244,59236.0,59233.0,0.067508]
[1723868664869,0.001,59234.0,59233.0,0.067508]
[1723868665670,0.00025244,59236.0,59233.0,0.068508]
[1723868665867,0.00125244,59236.0,59233.0,0.069508]
[1723868667777,0.00125244,59236.0,59233.0,0.068508]
[1723868668073,0.0934,59234.0,59233.0,0.068508]
[1723868668270,0.0934,59234.0,59233.0,0.069508]
[1723868673271,0.1034,59234.0,59233.0,0.069508]
[1723868677479,0.0934,59234.0,59233.0,0.069508]
[1723868678573,0.00025244,59236.0,59235.0,0.067506]
[1723868678879,0.00025244,59236.0,59235.0,0.14178925]
[1723868679180,0.00025244,59236.0,59235.0,0.20872419]
[1723868679385,0.00025244,59236.0,59235.0,0.14178925]
[1723868679575,0.00025244,59236.0,59235.0,0.20871358]
[1723868679775,0.00025244,59236.0,59235.0,0.20870689]
[1723868680986,0.00025244,59236.0,59235.0,0.22000904]
[1723868681180,0.00025244,59236.0,59235.0,0.15308471]
[1723868681580,0.00025244,59236.0,59235.0,0.15408471]
[1723868682281,0.00025244,59236.0,59235.0,0.17167656]
[1723868682783,0.00025244,59236.0,59235.0,0.53247656]
[1723868684085,0.00025244,59236.0,59235.0,0.53247585]
[1723868684987,0.09365244,59236.0,59235.0,0.51488526]
[1723868685685,0.00025244,59236.0,59235.0,0.51488526]
[1723868685890,0.00025244,59236.0,59235.0,0.5324747]
[1723868686091,0.00025244,59236.0,59235.0,0.59939903]
[1723868686683,0.00025244,59236.0,59235.0,0.5324747]
[1723868687091,0.00025244,59236.0,59235.0,0.53247342]
[1723868688088,0.09365244,59236.0,59235.0,0.53247342]
[1723868688294,0.17115744,59236.0,59235.0,0.13675971]
[1723868688488,0.22165871,59236.0,59235.0,0.08657815]
[1723868688695,0.22165871,59236.0,59235.0,0.076276]
[1723868688696,0.17115744,59236.0,59235.0,0.076276]
[1723868688897,0.17115744,59236.0,59235.0,0.039138]
[1723868691399,0.13502,59231.0,59230.0,0.05018156]
[1723868691696,0.13502,59231.0,59226.0,0.06717755]
[1723868691697,0.067515,59227.0,59226.0,0.00025322]
[1723868692001,0.470915,59227.0,59226.0,0.00025322]
[1723868692900,0.470955,59227.0,59226.0,0.00025322]
[1723868693497,0.067555,59227.0,59226.0,0.03740595]
[1723868693807,0.160955,59227.0,59226.0,0.03740595]
[1723868693999,0.067555,59227.0,59226.0,0.07455613]
[1723868694201,0.067555,59227.0,59226.0,0.08055621]
[1723868694604,0.13491364,59227.0,59226.0,0.04340595]
[1723868694803,0.13491175,59227.0,59226.0,0.08055616]
[1723868695103,0.067555,59227.0,59226.0,0.08055418]
[1723868695309,0.069555,59227.0,59226.0,0.04040365]
[1723868695496,0.070555,59227.0,59226.0,0.07455443]
[1723868696701,0.13789435,59227.0,59226.0,0.03740365]
[1723868696902,0.13789435,59227.0,59226.0,0.07455443]
[1723868697712,0.13789435,59227.0,59226.0,0.03740365]
[1723868698710,0.260555,59227.0,59226.0,0.037404]
[1723868701005,0.070555,59227.0,59226.0,0.037404]
[1723868701612,0.100555,59227.0,59226.0,0.037404]
[1723868701807,0.100555,59227.0,59226.0,0.00025322]
[1723868702502,0.15101727,59227.0,59226.0,0.00025322]
[1723868703905,0.100555,59227.0,59226.0,0.037404]
[1723868705711,0.05157931,59236.0,59235.0,0.067506]
[1723868705917,0.00025244,59236.0,59235.0,0.50259505]
[1723868706916,0.00025244,59236.0,59235.0,0.50359505]
[1723868707807,0.00025244,59236.0,59235.0,0.50459505]
[1723868708207,0.00025244,59236.0,59235.0,0.50458209]
[1723868708714,0.00025244,59236.0,59235.0,0.51455303]
[1723868709312,0.00025244,59236.0,59235.0,0.14378209]
[1723868711404,1.33009244,59236.0,59228.0,0.3608]
[1723868711611,0.300913,59229.0,59223.0,0.428319]
[1723868711813,0.300913,59229.0,59227.0,0.03714783]
[1723868712018,0.300913,59229.0,59223.0,0.428319]
[1723868712205,0.35135987,59229.0,59223.0,0.428319]
[1723868712411,0.300913,59229.0,59223.0,0.428319]
[1723868712610,0.067513,59229.0,59228.0,0.001]
[1723868712817,0.067513,59229.0,59228.0,0.002]
[1723868713409,0.067513,59229.0,59228.0,0.001]
[1723868714016,0.07778935,59229.0,59226.0,0.00625322]
[1723868714224,0.07778935,59229.0,59227.0,0.03714884]
[1723868714522,0.07778935,59229.0,59226.0,0.00325322]
[1723868714916,0.07878935,59229.0,59226.0,0.00025322]
[1723868715810,4e-05,59227.0,59226.0,0.00025322]
[1723868716313,0.01004,59227.0,59226.0,0.00025322]
[1723868717312,0.077555,59227.0,59226.0,0.00025322]
[1723868718207,0.12800187,59227.0,59226.0,0.00025322]
[1723868718410,0.077555,59227.0,59226.0,0.00025322]
[1723868719217,0.1280422,59227.0,59226.0,0.00025322]
[1723868719514,0.077555,59227.0,59226.0,0.00025322]
[1723868722014,0.077555,59227.0,59226.0,0.03740326]
[1723868722227,0.077555,59227.0,59226.0,0.03740319]
[1723868722430,0.077555,59227.0,59226.0,0.00025322]
[1723868728032,0.123355,59227.0,59226.0,0.00025322]
[1723868728527,0.123355,59227.0,59226.0,0.03740385]
[1723868731632,0.123355,59227.0,59226.0,0.00025322]
[1723868733322,4e-05,59227.0,59226.0,0.5028647]
[1723868733725,4e-05,59227.0,59226.0,0.50286476]
[1723868736435,4e-05,59227.0,59226.0,0.50286319]
[1723868736633,4e-05,59227.0,59226.0,0.56290165]
[1723868737435,4e-05,59227.0,59226.0,0.50286319]
[1723868737635,4e-05,59227.0,59226.0,0.55306223]
[1723868737835,0.04313827,59230.0,59226.0,0.48554623]
[1723868738029,0.05051829,59239.0,59229.0,0.06692433]
[1723868738346,0.05051829,59240.0,59235.0,0.47847959]
[1723868738647,0.11801529,59243.0,59235.0,0.58707729]
[1723868738827,0.11801529,59243.0,59235.0,0.58706656]
[1723868739030,0.11801529,59243.0,59235.0,0.52017917]
[1723868739344,0.05051829,59243.0,59235.0,0.52017917]
[1723868739534,0.05051829,59244.0,59235.0,0.58705323]
[1723868739737,0.05051829,59244.0,59235.0,0.52017917]
[1723868739938,0.05051829,59244.0,59242.0,0.067498]
[1723868740140,0.05051829,59244.0,59243.0,0.43509397]
[1723868740446,0.05051829,59245.0,59243.0,0.43508262]
[1723868740643,0.05051829,59245.0,59244.0,0.03713645]
[1723868740845,0.05051829,59245.0,59244.0,0.0371366]
[1723868741436,0.05051829,59246.0,59243.0,0.3608]
[1723868741635,0.05051829,59245.0,59243.0,0.3608]
[1723868741836,0.05051829,59245.0,59244.0,0.001]
[1723868742531,0.05051829,59245.0,59243.0,0.3608]
[1723868742737,0.05051829,59245.0,59243.0,0.3618]
[1723868742944,0.05051829,59245.0,59243.0,0.3628]
[1723868743336,0.05051829,59245.0,59243.0,0.001]
[1723868743536,0.06051829,59245.0,59244.0,0.001]
[1723868743735,0.01,59245.0,59244.0,0.00096]
[1723868744939,0.01,59245.0,59244.0,0.00196]
[1723868745140,0.01,59245.0,59244.0,0.001]
[1723868746240,0.01,59245.0,59244.0,0.002]
[1723868751257,0.01,59245.0,59244.0,0.03913724]
[1723868751446,0.06051829,59245.0,59244.0,0.03913724]
[1723868752650,0.06051829,59245.0,59244.0,0.03913751]
[1723868753053,0.06051829,59245.0,59244.0,0.0391375]
[1723868754652,0.06051829,59245.0,59244.0,0.03913751]
[1723868755450,0.01,59245.0,59244.0,0.03913751]
[1723868756960,0.06043063,59245.0,59244.0,0.03913751]
[1723868757171,0.06043063,59245.0,59244.0,0.03913676]
[1723868757663,0.01,59245.0,59244.0,0.03913676]
[1723868757868,0.1033,59245.0,59244.0,0.03913676]
[1723868758156,0.1537384,59245.0,59244.0,0.03913676]
[1723868758550,0.1033,59245.0,59244.0,0.03913676]
[1723868760752,0.170794,59245.0,59244.0,0.002]
[1723868761761,0.077494,59245.0,59244.0,0.002]
[1723868762060,0.23812432,59245.0,59244.0,0.002]
[1723868762453,0.170794,59245.0,59244.0,0.002]
[1723868766566,0.25524198,59245.0,59244.0,0.002]
[1723868767163,0.0101299,59249.0,59244.0,0.03913924]
[1723868767164,0.08444798,59248.0,59244.0,0.03913924]
[1723868767358,0.08444798,59248.0,59245.0,0.067494]
[1723868767359,0.06743906,59246.0,59245.0,0.067494]
[1723868767554,0.17774798,59248.0,59247.0,0.067492]
[1723868767758,0.0933,59248.0,59247.0,0.11776676]
[1723868769260,0.0933,59248.0,59247.0,0.068492]
[1723868769669,0.0933,59248.0,59247.0,0.10562751]
[1723868769871,0.0933,59248.0,59247.0,0.10662751]
[1723868771462,0.0933,59248.0,59247.0,0.14376302]
[1723868771659,0.00025322,59250.0,59247.0,0.10662751]
[1723868771860,0.0933,59248.0,59247.0,0.069492]
[1723868772065,0.0933,59248.0,59247.0,0.14376218]
[1723868772460,0.1033,59248.0,59247.0,0.14376218]
[1723868772666,0.1033,59248.0,59247.0,0.14276218]
[1723868772864,0.1033,59248.0,59247.0,0.14376218]
[1723868773275,0.1033,59248.0,59247.0,0.03913509]
[1723868773565,0.1033,59248.0,59247.0,0.08937999]
[1723868773766,0.1033,59248.0,59247.0,0.03913509]
[1723868773962,0.1033,59248.0,59247.0,0.08937616]
[1723868774171,0.170791,59248.0,59247.0,0.08937616]
[1723868774363,0.170791,59248.0,59247.0,0.03913509]
[1723868774563,0.170791,59248.0,59247.0,0.08937616]
[1723868774760,0.170791,59248.0,59247.0,0.03913509]
[1723868775073,0.00025322,59250.0,59247.0,0.07627154]
[1723868775368,0.0933,59249.0,59248.0,0.07427079]
[1723868775571,0.0933,59249.0,59248.0,0.14176179]
[1723868775971,0.00025322,59250.0,59248.0,0.14176179]
[1723868776162,0.00025322,59250.0,59249.0,0.0371357]
[1723868776471,0.00025322,59250.0,59249.0,0.07426928]
[1723868777671,0.00025322,59250.0,59249.0,0.12449984]
[1723868778066,0.00025322,59250.0,59249.0,0.07426928]
[1723868778874,0.00025322,59250.0,59249.0,0.07626928]
[1723868780270,0.00025322,59250.0,59249.0,0.14375928]
[1723868780572,0.06767034,59250.0,59249.0,0.14375928]
[1723868781462,0.00025322,59250.0,59249.0,0.19398984]
[1723868781664,0.00025322,59250.0,59249.0,0.16133259]
[1723868782061,0.00025322,59250.0,59249.0,0.22821575]
[1723868782267,0.00025322,59250.0,59249.0,0.16133259]
[1723868782971,0.00025322,59250.0,59249.0,0.09384259]
[1723868783168,0.06767034,59250.0,59249.0,0.09384259]
[1723868783564,0.00025322,59250.0,59249.0,0.09384259]
[1723868784371,0.00025322,59250.0,59249.0,0.19112427]
[1723868784560,0.00025322,59250.0,59249.0,0.16132689]
[1723868784764,0.00025322,59250.0,59249.0,0.22825604]
[1723868785174,0.00025322,59250.0,59249.0,0.16132689]
[1723868786169,0.00025322,59250.0,59249.0,0.52212689]
[1723868787070,0.00025322,59250.0,59249.0,0.58905604]
[1723868787669,0.00025322,59250.0,59249.0,0.58905533]
[1723868788877,0.00025322,59250.0,59249.0,0.58905445]
[1723868789379,0.00025322,59250.0,59249.0,0.49721915]
[1723868789571,0.00025322,59250.0,59249.0,0.58905361]
[1723868789977,0.00025322,59250.0,59249.0,0.22825361]
[1723868790374,0.00025322,59250.0,59249.0,0.58905361]
[1723868791077,0.00025322,59250.0,59249.0,0.52212446]
[1723868793885,0.00025322,59250.0,59249.0,0.52212239]
[1723868794878,0.00025322,59250.0,59249.0,0.16132239]
[1723868795080,0.00025322,59250.0,59249.0,0.52212239]
[1723868795379,0.00025322,59250.0,59249.0,0.58905154]
[1723868795970,0.00025322,59250.0,59249.0,0.68235154]
[1723868796172,0.00025322,59250.0,59249.0,0.28442081]
[1723868796371,0.00025322,59250.0,59249.0,0.68235154]
[1723868797371,0.00025322,59250.0,59249.0,0.32155154]
[1723868797771,0.00025322,59250.0,59249.0,0.68235154]
[1723868798178,0.14381691,59254.0,59249.0,0.54793239]
[1723868798378,0.08051691,59254.0,59253.0,0.05016642]
[1723868798576,0.08051691,59254.0,59253.0,0.08729702]
[1723868798769,0.08051691,59254.0,59253.0,0.12442762]
[1723868799281,0.08051691,59254.0,59253.0,0.55271262]
[1723868799482,0.08051691,59254.0,59253.0,0.55371262]
[1723868799872,0.08051691,59254.0,59253.0,0.5035462]
[1723868800584,0.08051691,59254.0,59253.0,0.1427462]
[1723868800784,0.08051691,59254.0,59253.0,0.5035462]
[1723868801376,0.08051691,59254.0,59253.0,0.1437462]
[1723868801583,0.08051691,59254.0,59253.0,0.5045462]
[1723868802272,0.08051691,59254.0,59253.0,0.51441704]
[1723868803081,0.08051691,59254.0,59253.0,0.15361704]
[1723868803284,0.08051691,59254.0,59253.0,0.20378346]
[1723868803482,0.08051691,59254.0,59253.0,0.56458346]
[1723868803679,0.08051691,59254.0,59253.0,0.52745286]
[1723868803886,0.08051691,59254.0,59253.0,0.56458346]
[1723868804180,0.08051691,59254.0,59253.0,0.51441704]
[1723868804383,0.03,59254.0,59253.0,0.51441704]
[1723868804583,0.05,59260.0,59253.0,0.58693204]
[1723868804584,0.05051691,59257.0,59253.0,0.58693204]